Workbook

Sheet SM-sarja
B1: Aimo Melleri | E1: 26.12.1953 Lappajärvi
B2: MESTARUUSSARJA | E2: Runkosarja | I2: Kärkilyönnit (KL), pesänvälit | P2: Runkosarja TOP-30 | U2: Ylempi loppusarja | AB2: Alempi loppusarja | AI2: Arvo-ottelut | AM2: Mitalit
B3: Vuosi | C3: Sija | D3: Seura | E3: OTT | F3: KUN | G3: LÖI | H3: TOI | I3: KL | J3: 0 > 1 | K3: 1 > 2 | L3: 2 > 3 | M3: 3 > k | N3: KL-% | P3: LÖI | Q3: TOI | R3: L+T | S3: KL | U3: OTT | V3: KUN | W3: LÖI | X3: TOI | Y3: KL | Z3: KL-% | AB3: OTT | AC3: KUN | AD3: LÖI | AE3: TOI | AF3: KL | AG3: KL-% | AI3: IL | AJ3: LL | AK3: Cup | AL3: K | AM3: H | AN3: P
B4: 1974 | C4: 8. | D4: ViVe | E4: 22 | F4: 0 | G4: 9 | H4: 12
B5: 1975 | C5: 2. | D5: ViVe | E5: 19 | F5: 0 | G5: 7 | H5: 17 | Q5: 27. | AM5: 1
B6: 1976 | C6: 7. | D6: ViVe | E6: 12 | F6: 0 | G6: 8 | H6: 18 | Q6: 27.
B7: 1977 | C7: 7. | D7: ViVe | E7: 19 | F7: 1 | G7: 11 | H7: 11 | I7: 88 | J7: 43 | K7: 25 | L7: 8 | M7: 12 | N7: ----
B8: 1978 | C8: 12. | D8: HePe | E8: 19 | F8: 0 | G8: 2 | H8: 15 | I8: 66 | J8: 35 | K8: 17 | L8: 12 | M8: 2 | N8: ----
B9: 1979
B10: 1980
B11: 1981 | C11: 12. | D11: LoKV | F11: ykkössarja
B12: 1982 | C12: 7. | D12: SiiPo | E12: 15 | F12: 0 | G12: 6 | H12: 8 | I12: 51 | J12: 24 | K12: 8 | L12: 13 | M12: 6 | N12: 53.7 %
B13: 1983 | C13: 8. | D13: SiiPo | E13: 22 | F13: 1 | G13: 10 | H13: 12 | I13: 104 | J13: 31 | K13: 34 | L13: 28 | M13: 11 | N13: 58.1 % | AB13: 6 | AC13: 0 | AD13: 2 | AE13: 8 | AF13: 27 | AG13: 61.4 %
B14: 1984 | C14: 10. | D14: SiiPo | E14: 22 | F14: 1 | G14: 10 | H14: 13 | I14: 95 | J14: 43 | K14: 27 | L14: 14 | M14: 11 | N14: 51.4 % | AB14: 6 | AC14: 0 | AD14: 6 | AE14: 4 | AF14: 34 | AG14: 61.8 %
B15: 1985 | C15: 10. | D15: PuMu | F15: ykkössarja
B16: 1986 | C16: 9. | D16: PuMu | F16: suomensarja
B17: ****
B18: 1992 | C18: 10. | D18: Palo | F18: suomensarja
B20: 1996 | C20: 8. | D20: PuMu | F20: suomensarja
B21: 1997 | C21: 7. | D21: PuMu | F21: suomensarja
B22: 1998 | C22: 7. | D22: PuMu | F22: suomensarja
B23: Yhteensä | E23: =SUM(E4:E14) -> 150 | F23: 3 | G23: 63 | H23: 106 | I23: 404 | J23: 176 | K23: 111 | L23: 75 | M23: 42 | N23: 54.5 % | P23: 0-0-0 | Q23: 0-0-0 | R23: 0-0-0 | S23: 0-0-0 | U23: =SUM(U4:U14) -> 0 | V23: 0 | W23: 0 | X23: 0 | Y23: 0 | Z23: 0.0 % | AB23: 12 | AC23: 0 | AD23: 8 | AE23: 12 | AF23: 61 | AG23: 61.6 % | AI23: 0 | AJ23: 0 | AK23: 0 | AL23: 0 | AM23: 1 | AN23: 0
B24: Pesispörssi | D24: 409.7
B26: URA SM-SARJASSA | E26: OTT | F26: KUN | G26: LÖI | H26: TOI | I26: KL | K26: ka/L | L26: ka/T | M26: ka/KL | N26: KL-% | P26: ENSIMMÄISET RUNKOSARJASSA
B27: Runkosarja | E27: =PRODUCT(E23) -> 150 | F27: =PRODUCT(F23) -> 3 | G27: =PRODUCT(G23) -> 63 | H27: =PRODUCT(H23) -> 106 | I27: =PRODUCT(I23) -> 404 | K27: =PRODUCT((F27+G27)/E27) -> 0.44 | L27: =PRODUCT(H27/E27) -> 0.71 | M27: =PRODUCT(I27/(E27-53)) -> 4.16 | N27: =PRODUCT(N23) -> 54.5 % | P27: Ottelu | R27: 05.05. 1974 KaMa - ViVe 6-1 | Z27: 1. ottelu | AC27: 20 v 4 kk 9 pv
B28: Ylempi loppusarja | P28: Lyöty | R28: 23.05. 1974 ViVe - AA 6-4 | Z28: 4. ottelu | AC28: 19 v 4 kk 27 pv
B29: Alempi loppusarja | E29: =SUM(AB23) -> 12 | F29: =SUM(AC23) -> 0 | G29: =SUM(AD23) -> 8 | H29: =SUM(AE23) -> 12 | I29: =SUM(AF23) -> 61 | K29: =PRODUCT((F29+G29)/E29) -> 0.67 | L29: =PRODUCT(H29/E29) -> 1.00 | M29: =PRODUCT(I29/E29) -> 5.08 | N29: 61.6 % | P29: Tuotu | R29: 19.05. 1974 HP - ViVe 5-4 | Z29: 3. ottelu | AC29: 19 v 4 kk 23 pv
B30: KAIKKI | E30: =SUM(E27:E29) -> 162 | F30: =SUM(F27:F29) -> 3 | G30: =SUM(G27:G29) -> 71 | H30: =SUM(H27:H29) -> 118 | I30: =SUM(I27:I29) -> 465 | K30: =PRODUCT((F30+G30)/E30) -> 0.46 | L30: =PRODUCT(H30/E30) -> 0.73 | M30: =PRODUCT(I30/(E30-53)) -> 4.27 | N30: 55.7 % | P30: Kunnari | R30: 26.06. 1977 Tahko - ViVe 3-15 | Z30: 65. ottelu | AC30: 23 v 6 kk 0 pv
B32: Seurat | D32: LaVe = Lappajärven Veikot (1911), kasvattajaseura | N32: LoKV = Lohjan Kisa-Veikot (1950)
D33: ViVe = Vimpelin Veto (1934) | N33: SiiPo = Siilinjärven Ponnistus (1907)
D34: HePe = Helsinki-Pesis (1977) | N34: Palo = Järvenpään Palo (1914)

Sheet MYP, MSS
B1: Aimo Melleri | E1: 26.12.1953 Lappajärvi
B2: YKKÖSPESIS | E2: Runkosarja | L2: Runkosarja TOP-10 | Q2: Jatkosarjat | X2: SUOMENSARJA | AA2: Runkosarja | AH2: Runkosarja TOP-10 | AM2: Jatkosarjat
B3: Vuosi | C3: Sija | D3: Seura | E3: OTT | F3: KUN | G3: LÖI | H3: TOI | I3: KL | J3: KL-% | L3: LÖI | M3: TOI | N3: L+T | O3: KL | Q3: OTT | R3: KUN | S3: LÖI | T3: TOI | U3: KL | V3: KL-% | X3: Vuosi | Y3: Sija | Z3: Seura | AA3: OTT | AB3: KUN | AC3: LÖI | AD3: TOI | AE3: KL | AF3: KL-% | AH3: LÖI | AI3: TOI | AJ3: L+T | AK3: KL | AM3: OTT | AN3: KUN | AO3: LÖI | AP3: TOI | AQ3: KL | AR3: KL-%
B4: 1981 | C4: 12. | D4: LoKV | E4: 10 | F4: 0 | G4: 6 | H4: 10 | Q4: 10 | R4: 0 | S4: 5 | T4: 13
B6: 1985 | C6: 10. | D6: PuMu | E6: 20 | F6: 2 | G6: 7 | H6: 25
X7: 1986 | Y7: 9. | Z7: PuMu | AA7: 22 | AB7: 3 | AC7: 36 | AD7: 22 | AH7: 8.
X9: 1992 | Y9: 10. | Z9: Palo | AA9: 21 | AB9: 1 | AC9: 14 | AD9: 13
B10: YHTEENSÄ | E10: =SUM(E4:E9) -> 30 | F10: =SUM(F4:F9) -> 2 | G10: =SUM(G4:G9) -> 13 | H10: =SUM(H4:H9) -> 35 | I10: =SUM(I4:I9) -> 0 | J10: 0.0 % | K10: =SUM(K4:K9) -> 0 | Q10: =SUM(Q4:Q9) -> 10 | R10: =SUM(R4:R9) -> 0 | S10: =SUM(S4:S9) -> 5 | T10: =SUM(T4:T9) -> 13 | U10: =SUM(U4:U9) -> 0 | V10: 0.0 % | W10: =SUM(W4:W9) -> 0 | X10: YHTEENSÄ | AA10: =SUM(AA4:AA9) -> 43 | AB10: =SUM(AB4:AB9) -> 4 | AC10: =SUM(AC4:AC9) -> 50 | AD10: =SUM(AD4:AD9) -> 35 | AE10: =SUM(AE4:AE9) -> 0 | AF10: 0.0 % | AG10: =SUM(AG4:AG9) -> 0 | AM10: =SUM(AM4:AM9) -> 0 | AN10: =SUM(AN4:AN9) -> 0 | AO10: =SUM(AO4:AO9) -> 0 | AP10: =SUM(AP4:AP9) -> 0 | AQ10: =SUM(AQ4:AQ9) -> 0 | AR10: 0.0 % | AS10: =SUM(AS4:AS9) -> 0
B12: KAIKKI OTTELUT | E12: OTT | F12: KUN | G12: LÖI | H12: TOI | I12: KL | J12: KL-% | L12: ka/L | M12: ka/T | N12: ka/l+t | O12: ka/kl | R12: Seurat | T12: LaVe = Lappajärven Veikot (1911), kasvattajaseura
B13: SUPERPESIS | E13: 162 | F13: 3 | G13: 71 | H13: 118 | I13: 465 | J13: 55.7 % | K13: =PRODUCT(I13/J13) -> 834.8294434 | L13: =PRODUCT((F13+G13)/E13) -> 0.46 | M13: =PRODUCT(H13/E13) -> 0.73 | N13: =PRODUCT((F13+G13+H13)/E13) -> 1.19 | O13: =PRODUCT(I13/E13) -> 2.87 | T13: ViVe = Vimpelin Veto (1934)
B14: YKKÖSPESIS | E14: =PRODUCT(E10+Q10) -> 40 | F14: =PRODUCT(F10+R10) -> 2 | G14: =PRODUCT(G10+S10) -> 18 | H14: =PRODUCT(H10+T10) -> 48 | I14: =PRODUCT(I10+U10) -> 0 | J14: 0.0 % | K14: =PRODUCT(K10+W10) -> 0 | L14: =PRODUCT((F14+G14)/E14) -> 0.50 | M14: =PRODUCT(H14/E14) -> 1.20 | N14: =PRODUCT((F14+G14+H14)/E14) -> 1.70 | O14: =PRODUCT(I14/E14) -> 0.00 | T14: HePe = Helsinki-Pesis (1977)
B15: SUOMENSARJA | E15: =PRODUCT(AA10+AM10) -> 43 | F15: =PRODUCT(AB10+AN10) -> 4 | G15: =PRODUCT(AC10+AO10) -> 50 | H15: =PRODUCT(AD10+AP10) -> 35 | I15: =PRODUCT(AE10+AQ10) -> 0 | J15: 0.0 % | K15: =PRODUCT(AG10+AS10) -> 0 | L15: =PRODUCT((F15+G15)/E15) -> 1.26 | M15: =PRODUCT(H15/E15) -> 0.81 | N15: =PRODUCT((F15+G15+H15)/E15) -> 2.07 | O15: =PRODUCT(I15/E15) -> 0.00 | T15: LoKV = Lohjan Kisa-Veikot (1950)
B16: YHTEENSÄ | E16: =SUM(E13:E15) -> 245 | F16: =SUM(F13:F15) -> 9 | G16: 139 | H16: 201 | I16: 465 | J16: 0.0 % | K16: =SUM(K13:K15) -> 834.8294434 | L16: =PRODUCT((F16+G16)/E16) -> 0.60 | M16: =PRODUCT(H16/E16) -> 0.82 | N16: =PRODUCT((F16+G16+H16)/E16) -> 1.42 | O16: =PRODUCT(I16/E16) -> 1.90 | T16: SiiPo = Siilinjärven Ponnistus (1907)
T17: Palo = Järvenpään Palo (1914)

Sheet Kärkilyönnit
B1: KÄRKILYÖNNIT RUNKOSARJASSA | V1: VUOSITTAISET SIJOITUKSET TOP - 30
G2: 0 > 1 | J2: 1 > 2 | M2: 2 > 3 | P2: 3 > k | S2: Yhteensä
B3: Vuosi | C3: Sija | D3: Seura | E3: OTT | F3: KL | G3: YHT | H3: % | I3: KL | J3: YHT | K3: % | L3: KL | M3: YHT | N3: % | O3: KL | P3: YHT | Q3: % | R3: KL | S3: YHT | T3: % | V3: Vuosi | W3: Sija | X3: Seura | Y3: 0 > 1 | Z3: 1 > 2 | AA3: 2 > 3 | AB3: 3 > k | AC3: KL
B4: 1982 | C4: 7. | D4: SiiPo | E4: 15 | F4: 24 | G4: 46 | H4: =PRODUCT(F4/G4) -> 52.2 % | I4: 8 | J4: 12 | K4: =PRODUCT(I4/J4) -> 66.7 % | L4: 13 | M4: 19 | N4: =PRODUCT(L4/M4) -> 68.4 % | O4: 6 | P4: 18 | Q4: =PRODUCT(O4/P4) -> 33.3 % | R4: 51 | S4: =PRODUCT(G4+J4+M4+P4) -> 95 | T4: =PRODUCT(R4/S4) -> 53.7 % | V4: 1982 | W4: 7. | X4: SiiPo
B5: 1983 | C5: 10. | D5: SiiPo | E5: 22 | F5: 31 | G5: 49 | H5: =PRODUCT(F5/G5) -> 63.3 % | I5: 34 | J5: 49 | K5: =PRODUCT(I5/J5) -> 69.4 % | L5: 28 | M5: 45 | N5: =PRODUCT(L5/M5) -> 62.2 % | O5: 11 | P5: 36 | Q5: =PRODUCT(O5/P5) -> 30.6 % | R5: 104 | S5: =PRODUCT(G5+J5+M5+P5) -> 179 | T5: =PRODUCT(R5/S5) -> 58.1 % | V5: 1983 | W5: 10. | X5: SiiPo | Y5: 22. | Z5: 22.
B6: 1984 | C6: 8. | D6: SiiPo | E6: 22 | F6: 43 | G6: 69 | H6: =PRODUCT(F6/G6) -> 62.3 % | I6: 27 | J6: 60 | K6: =PRODUCT(I6/J6) -> 45.0 % | L6: 14 | M6: 27 | N6: =PRODUCT(L6/M6) -> 51.9 % | O6: 11 | P6: 29 | Q6: =PRODUCT(O6/P6) -> 37.9 % | R6: 95 | S6: =PRODUCT(G6+J6+M6+P6) -> 185 | T6: 51.4 % | V6: 1984 | W6: 8. | X6: SiiPo | Y6: 11.
B7: Yhteensä | E7: =SUM(E4:E6) -> 59 | F7: =SUM(F4:F6) -> 98 | G7: =SUM(G4:G6) -> 164 | H7: =PRODUCT(F7/G7) -> 59.8 % | I7: =SUM(I4:I6) -> 69 | J7: =SUM(J4:J6) -> 121 | K7: =PRODUCT(I7/J7) -> 57.0 % | L7: =SUM(L4:L6) -> 55 | M7: =SUM(M4:M6) -> 91 | N7: =PRODUCT(L7/M7) -> 60.4 % | O7: =SUM(O4:O6) -> 28 | P7: =SUM(P4:P6) -> 83 | Q7: =PRODUCT(O7/P7) -> 33.7 % | R7: =SUM(R4:R6) -> 250 | S7: =SUM(S4:S6) -> 459 | T7: =PRODUCT(R7/S7) -> 54.5 %
